bitfinex/quotes_ETHUSD_20241223
["timestamp","ask_amount","ask_price","bid_price","bid_amount"]
[1734912002225,0.03327141,3281.9,3281.8,7.00116712]
[1734912002419,0.03327141,3281.9,3281.8,7.75555383]
[1734912002864,0.03327141,3281.9,3281.8,11.54544083]
[1734912003568,0.03327141,3281.9,3281.8,9.93405883]
[1734912003730,0.03327141,3281.9,3281.8,7.75555383]
[1734912003930,0.03327141,3281.9,3281.8,10.72155383]
[1734912004465,0.03327141,3281.9,3281.8,7.75555383]
[1734912004642,0.03327141,3281.9,3281.8,10.62720183]
[1734912005086,0.03327141,3281.9,3281.8,7.75555383]
[1734912005294,0.03327141,3281.9,3281.8,12.46120183]
[1734912006303,0.03327141,3281.9,3281.8,21.44120183]
[1734912006498,0.03327141,3281.9,3281.8,13.90963074]
[1734912006794,0.03327141,3281.9,3281.8,9.53]
[1734912007089,0.03327141,3281.9,3281.8,15.35592309]
[1734912007291,1.89775831,3282.7,3282.0,8.98]
[1734912007462,1.4379531,3282.7,3282.6,11.80592309]
[1734912007661,0.88031961,3282.7,3282.6,15.35592309]
[1734912007877,0.88031961,3282.7,3282.6,15.89862309]
[1734912008079,0.88031961,3282.7,3282.6,22.36886809]
[1734912009098,0.88031961,3282.7,3282.6,15.89862309]
[1734912009686,0.88031961,3282.7,3282.6,21.1607978]
[1734912010118,0.88031961,3282.7,3282.6,12.9811118]
[1734912010247,0.8074,3282.9,3282.7,0.55]
[1734912011852,0.7887,3283.6,3282.7,0.55]
[1734912012200,2.05865465,3283.6,3283.1,0.55]
[1734912012553,0.7887,3283.5,3283.1,0.55]
[1734912018281,0.03186185,3283.4,3283.1,0.55]
[1734912018683,0.7887,3283.5,3283.1,0.55]
[1734912019197,2.03005465,3284.1,3283.6,3.0]
[1734912019497,0.03095614,3284.0,3283.9,2.82592309]
[1734912019705,0.03095614,3284.0,3283.9,3.37592309]
[1734912021308,0.16908,3284.5,3284.0,0.55]
[1734912021620,0.16908,3284.5,3284.2,2.82592309]
[1734912022179,0.16908,3284.5,3284.3,3.55]
[1734912024225,0.16908,3284.5,3284.3,0.55]
[1734912024386,0.16908,3284.5,3284.2,2.82592309]
[1734912024589,0.7974,3284.4,3284.2,2.82592309]
[1734912025122,0.7974,3284.4,3283.9,2.82592309]
[1734912029382,0.7974,3284.4,3283.6,2.82592309]
[1734912029589,0.7974,3284.4,3283.3,2.82592309]
[1734912030250,0.03127766,3284.3,3283.3,2.82592309]
[1734912030555,0.8206,3283.7,3283.3,2.82592309]
[1734912030937,0.03108017,3283.6,3283.3,2.82592309]
[1734912034153,0.03108017,3283.6,3283.4,0.55]
[1734912034452,0.8206,3283.7,3283.4,0.55]
[1734912034757,0.8206,3283.7,3283.6,2.82592309]
[1734912035262,0.85135942,3283.7,3283.6,2.82592309]
[1734912037479,3.89673942,3283.7,3283.3,2.82592309]
[1734912037684,0.8109,3283.5,3282.7,2.82592309]
[1734912037898,3.04603,3283.0,3282.5,2.82592309]
[1734912038181,0.84124474,3282.9,3282.5,2.82592309]
[1734912038690,3.88732474,3282.9,3282.5,2.82592309]
[1734912038891,3.88732474,3282.9,3282.4,0.15865847]
[1734912039056,3.88732474,3282.9,3282.2,12.40584564]
[1734912039257,3.85698,3282.9,3282.2,12.40584564]
[1734912039942,0.03032908,3282.8,3282.3,0.55]
[1734912040795,0.03032908,3282.8,3282.3,0.40974951]
[1734912042343,3.07653908,3282.8,3282.3,0.40974951]
[1734912042545,0.03032908,3282.8,3282.5,2.82592309]
[1734912045396,0.03032908,3282.8,3282.3,0.40974951]
[1734912045555,0.03032908,3282.8,3282.3,3.2356726]
[1734912045755,3.07650908,3282.8,3282.3,3.2356726]
[1734912046082,3.46524999,3282.8,3282.3,3.2356726]
[1734912046998,0.41906999,3282.8,3282.3,3.2356726]
[1734912047203,0.03032908,3282.8,3282.3,3.2356726]
[1734912047368,3.85706,3282.9,3282.3,3.2356726]
[1734912047913,0.02889824,3282.8,3281.3,8.98]
[1734912048058,0.02889824,3282.8,3281.2,1.27549058]
[1734912048059,3.04757,3281.3,3281.2,1.27549058]
[1734912048254,4.153827,3281.3,3281.2,1.27549058]
[1734912048499,4.18179649,3281.3,3281.2,1.27549058]
[1734912048711,1.13422649,3281.3,3281.0,1.90891427]
[1734912049008,3.04773,3281.2,3281.0,1.90891427]
[1734912049224,3.04773,3281.2,3280.4,12.7810063]
[1734912049381,0.02768408,3281.1,3280.6,2.82592309]
[1734912050091,0.02768408,3281.1,3280.5,0.55]
[1734912050476,0.02053939,3281.1,3280.5,0.55]
[1734912050677,0.02777203,3281.1,3280.5,0.55]
[1734912053399,3.04773,3281.2,3280.5,0.55]
[1734912053710,0.8058,3281.9,3280.9,2.82592309]
[1734912053876,0.8058,3281.9,3280.8,0.5427]
[1734912053877,0.8058,3281.9,3281.4,0.55]
[1734912054081,0.8058,3281.9,3281.5,35.0]
[1734912054321,0.8058,3281.9,3281.6,0.55]
[1734912054589,0.8058,3281.9,3281.5,0.55]
[1734912056778,0.7669,3282.3,3281.8,3.04708]
[1734912057050,3.81308,3282.8,3281.9,3.37592309]
[1734912057524,0.7669,3282.8,3281.9,6.42292309]
[1734912057679,0.7669,3282.8,3282.1,0.55]
[1734912058125,3.81308,3282.8,3282.1,0.55]
[1734912058479,3.0463,3282.7,3282.1,0.55]
[1734912058681,0.7669,3282.8,3281.7,11.98]
[1734912058888,0.8227,3282.4,3281.7,11.98]
[1734912060425,0.8227,3282.4,3281.9,2.82592309]
[1734912060623,0.8227,3282.4,3281.8,0.55]
[1734912061299,0.8227,3282.4,3281.6,3.55]
[1734912061500,0.8227,3282.4,3281.6,0.55]
[1734912061699,3.04664,3282.3,3281.6,0.55]
[1734912061901,0.8227,3282.4,3281.6,0.55]
[1734912063332,0.8227,3282.4,3281.5,0.55]
[1734912065488,3.86927,3282.4,3281.5,0.55]
[1734912066131,3.04673,3282.3,3281.5,0.55]
[1734912067402,0.8227,3282.4,3281.5,0.55]
[1734912068118,0.8227,3282.4,3281.7,0.55]
[1734912068334,0.8227,3282.4,3281.7,3.59719]
[1734912068628,0.8227,3282.4,3281.8,0.64231131]
[1734912069265,0.8227,3282.4,3281.9,2.82592309]
[1734912069773,0.8227,3282.4,3281.8,0.64231131]
[1734912070274,0.8227,3282.4,3281.5,8.98]
[1734912070425,0.8227,3282.4,3281.1,0.5427]
[1734912070854,0.8227,3282.4,3281.1,3.36862309]
[1734912071669,0.8227,3282.4,3281.2,3.55]
[1734912071850,0.8227,3282.4,3281.5,3.55]
[1734912072059,0.8227,3282.4,3281.6,0.355]
[1734912072528,0.8227,3282.4,3281.6,3.94499]
[1734912072876,0.8227,3282.4,3281.7,0.55]
[1734912073074,1.26995465,3282.5,3282.0,2.82592309]
[1734912073284,1.89792404,3282.7,3282.0,2.82592309]
[1734912073285,0.7788,3282.7,3282.0,2.82592309]
[1734912073434,0.7788,3282.7,3282.1,0.28259231]
[1734912077570,0.7788,3282.7,3282.1,3.28259231]
[1734912078303,0.76,3283.1,3282.2,0.55]
[1734912079402,0.76,3283.1,3282.2,3.5967]
[1734912079574,1.26995465,3283.2,3282.6,3.04635]
[1734912079777,1.26995465,3283.2,3282.7,0.55]
[1734912079970,1.26995465,3283.2,3282.7,3.59624]
[1734912080508,1.26995465,3283.2,3283.0,0.5427]
[1734912080810,1.26995465,3283.2,3283.1,0.55]
[1734912081104,0.7786,3283.8,3283.1,0.55]
[1734912081105,0.7786,3283.8,3283.1,0.905]
[1734912081283,0.7786,3283.8,3283.1,0.55]
[1734912081864,0.7786,3283.8,3283.0,0.55]
[1734912082066,2.04855465,3283.8,3283.0,0.55]
[1734912082402,3.04546,3283.6,3282.9,8.98]
[1734912083162,3.04554,3283.5,3282.9,8.98]
[1734912083374,0.7642,3283.3,3282.3,6.97005529]
[1734912083577,3.04591,3283.1,3282.3,0.5427]
[1734912084018,3.80994,3283.3,3282.3,0.5427]
[1734912084164,0.7642,3283.3,3282.3,0.5427]
[1734912084368,0.7642,3283.3,3282.4,3.04652]
[1734912084369,2.03415465,3283.3,3282.4,3.04652]
[1734912084706,2.03415465,3283.3,3282.3,3.36862309]
[1734912085006,5.07986465,3283.3,3282.4,3.55]
[1734912085512,5.07986465,3283.3,3282.4,3.0]
[1734912085870,3.80991,3283.3,3282.4,3.0]
[1734912086412,5.07986465,3283.3,3282.4,3.0]
[1734912086614,0.50798647,3283.2,3282.4,3.0]
[1734912086814,0.8248,3283.2,3282.1,0.55]
[1734912087116,0.8248,3282.7,3282.0,2.82592309]
[1734912087284,0.8248,3282.7,3282.0,11.80592309]
[1734912087684,3.04636,3282.6,3282.0,2.82592309]
[1734912087901,0.8248,3282.7,3281.4,3.04741]
[1734912087902,0.8248,3282.7,3281.5,0.5427]
[1734912088220,4.09587774,3283.3,3281.5,8.98]
[1734912088221,0.7944,3282.6,3281.5,8.98]
[1734912088515,3.04664,3282.3,3281.5,8.98]
[1734912088872,0.7976,3282.2,3281.5,8.98]
[1734912089101,3.04684,3282.1,3281.5,8.98]
[1734912089303,3.04692,3282.0,3281.5,8.98]
[1734912092234,0.7976,3282.2,3281.5,43.98]
[1734912092731,1.30902647,3282.2,3281.1,2.82592309]
[1734912092943,1.30902647,3282.2,3280.6,0.5427]
[1734912092944,0.759,3281.5,3280.6,0.5427]
[1734912093115,3.0476,3281.3,3280.4,0.5427]
[1734912093429,3.0476,3281.3,3280.4,9.5227]
[1734912093786,3.04767,3281.2,3280.4,9.5227]
[1734912094588,3.85555,3282.0,3281.1,2.82592309]
[1734912094816,1.26995465,3281.6,3280.8,3.37592309]
[1734912095534,1.26995465,3281.6,3280.8,2.82592309]
[1734912095838,3.04721,3281.7,3280.9,3.0]
[1734912096023,3.04721,3281.7,3280.8,0.33686231]
[1734912096339,0.8084,3281.6,3280.8,0.33686231]
[1734912096490,0.8084,3281.6,3280.8,3.1627854]
[1734912096689,0.8084,3281.6,3280.9,3.0]
[1734912096936,0.8084,3281.6,3281.0,0.61627854]
[1734912100038,2.08605465,3281.9,3281.0,0.61627854]
[1734912100544,1.26995465,3281.9,3281.2,0.55]
[1734912100690,1.26995465,3281.9,3281.4,2.82592309]
[1734912101038,1.26995465,3282.0,3281.5,0.28259231]
[1734912101223,1.26995465,3282.0,3281.6,0.5427]
[1734912101994,1.26995465,3282.4,3281.6,0.5427]
[1734912103037,5.13252465,3282.5,3281.6,0.5427]
[1734912104143,2.08605465,3282.5,3281.7,3.04718]
[1734912104327,1.26995465,3282.5,3281.8,3.34519374]
[1734912105238,1.26995465,3282.5,3281.8,3.95754634]
[1734912105400,5.13013465,3282.8,3281.8,3.95754634]
[1734912105944,1.26995465,3282.7,3281.8,3.95754634]
[1734912106557,5.13013465,3282.8,3281.8,3.95754634]
[1734912107064,2.08395465,3282.8,3281.9,0.33686231]
[1734912107279,1.26995465,3282.8,3282.0,6.41545309]
[1734912107587,1.26995465,3282.7,3282.4,0.5427]
[1734912107893,1.26995465,3282.7,3282.4,6.58923]
[1734912108043,1.26995465,3282.7,3282.5,9.59627854]
[1734912108242,1.26995465,3283.0,3282.6,5.82592309]
[1734912108446,1.26995465,3283.0,3282.7,3.04627]
[1734912108757,1.26995465,3283.0,3282.6,5.82592309]
[1734912109148,1.26995465,3283.0,3282.7,0.55]
[1734912109497,1.26995465,3283.6,3283.0,8.98]
[1734912109693,1.26995465,3283.6,3283.5,3.04553]
[1734912110402,1.26995465,3283.6,3283.5,3.59553]
[1734912110602,1.26995465,3284.3,3283.6,8.98]
[1734912110788,1.26995465,3284.3,3283.7,0.55]
[1734912110945,0.02742605,3284.2,3283.7,6.42122309]
[1734912111149,1.26995465,3284.3,3283.7,6.42122309]
[1734912111703,0.16908,3284.5,3283.7,6.42122309]
[1734912112071,0.02758414,3284.4,3283.8,15.02524]
[1734912112288,0.02758414,3284.4,3284.0,2.82592309]
[1734912113065,0.16908,3284.5,3284.0,2.82592309]
[1734912113478,0.02771627,3284.4,3284.0,2.82592309]
[1734912114801,0.16908,3284.5,3284.3,11.98]
[1734912115096,0.16908,3284.5,3284.4,3.0]
[1734912115300,0.16908,3284.5,3284.4,3.62778605]
[1734912117101,0.16908,3284.5,3284.3,8.98]
[1734912117606,0.02823739,3284.4,3284.3,8.98]
[1734912118612,3.07292739,3284.4,3284.3,8.98]
[1734912119209,0.02823739,3284.4,3284.3,8.98]
[1734912120467,0.02823739,3284.4,3283.3,3.04571]
[1734912120468,3.04527,3283.8,3283.3,8.98]
[1734912120677,0.7746,3283.7,3283.3,8.98]
[1734912120879,0.7746,3283.7,3283.0,0.5427]
[1734912120880,0.80227904,3283.7,3283.0,0.5427]
[1734912121109,0.80227904,3283.7,3282.7,9.5227]
[1734912121313,0.80227904,3283.7,3282.8,1.23486231]
[1734912121314,0.7746,3283.7,3282.8,1.23486231]
[1734912121614,3.82,3283.7,3282.7,0.5427]
[1734912121788,3.04545,3283.6,3282.7,0.5427]
[1734912122498,3.04545,3283.6,3282.7,3.5427]
[1734912123321,0.7746,3283.7,3282.7,3.5427]
[1734912123610,3.81995,3283.7,3282.7,0.5427]
[1734912123972,0.02776387,3283.6,3282.7,0.5427]
[1734912124169,0.7746,3283.7,3282.7,0.5427]
[1734912124375,3.81999,3283.7,3282.7,0.5427]
[1734912124927,3.81999,3283.7,3282.7,3.5427]
[1734912125280,0.7746,3283.7,3282.6,8.98]
[1734912125512,0.8057,3282.7,3281.9,2.82592309]
[1734912125787,3.04648,3282.5,3281.8,0.5427]
[1734912126382,3.04662,3282.4,3281.4,9.5227]
[1734912126716,3.04674,3282.2,3281.4,9.5227]
[1734912126920,0.8057,3282.1,3281.4,9.5227]
[1734912128613,3.85253,3282.1,3281.4,8.98]
[1734912128819,3.04722,3281.7,3280.7,0.5427]
[1734912129184,3.04722,3281.7,3280.8,0.61834735]
[1734912129416,3.04722,3281.7,3280.9,8.98]
[1734912129804,0.7741,3281.3,3280.7,9.5227]
[1734912130116,0.7741,3281.3,3280.7,8.98]
[1734912130823,0.7741,3281.3,3280.7,9.89387638]
[1734912132237,3.0,3282.3,3280.7,9.89387638]
[1734912132238,3.85755,3282.4,3281.0,3.42598617]
[1734912132395,0.811,3282.4,3281.1,3.0]
[1734912132947,3.04676,3282.2,3281.2,35.0]
[1734912133252,0.811,3282.4,3281.2,35.66705052]
[1734912133611,3.85755,3282.4,3281.2,35.66705052]
[1734912134244,0.811,3282.4,3281.2,35.66705052]
[1734912134397,3.04665,3282.3,3281.2,35.66705052]
[1734912135243,3.04675,3282.2,3281.2,35.66705052]
[1734912135413,3.04675,3282.2,3281.3,0.91387638]
[1734912137648,0.811,3282.4,3281.3,0.91387638]
[1734912138436,3.04674,3282.2,3281.3,0.91387638]
[1734912138942,0.811,3282.4,3281.3,0.91387638]
[1734912138943,3.04685,3282.1,3281.3,0.91387638]
[1734912139651,3.04699,3282.0,3281.2,8.98]
[1734912139950,3.04711,3281.8,3280.9,0.5427]
[1734912140124,3.83901,3281.7,3280.9,0.5427]
[1734912141251,0.7918,3281.7,3280.8,3.0]
[1734912141414,3.04748,3281.4,3280.8,3.0]
[1734912141609,0.7918,3281.7,3280.8,3.0]
[1734912141811,3.04729,3281.6,3280.7,8.98]
[1734912142019,3.04753,3281.4,3280.7,8.98]
[1734912142219,0.688628,3281.6,3280.7,8.98]
[1734912142448,3.04766,3281.2,3280.7,8.98]
[1734912142761,0.688628,3281.6,3280.3,0.5427]
[1734912142762,0.8211,3281.5,3280.3,0.5427]
[1734912142917,3.04747,3281.4,3280.3,0.5427]
[1734912143119,3.04813,3280.7,3280.0,0.5427]
[1734912143858,3.04795,3280.9,3280.0,0.5427]
[1734912144161,0.8181,3281.2,3280.2,3.42598617]
[1734912144349,3.86554,3281.5,3280.3,0.5427]
[1734912144553,3.86554,3281.5,3280.3,3.5427]
[1734912144751,0.8181,3281.5,3280.4,0.69686862]
[1734912144967,0.8181,3281.5,3280.4,3.74525862]
[1734912145552,0.7993,3281.8,3280.8,3.04801]
[1734912145725,0.7993,3281.8,3280.9,3.0]
[1734912146146,0.7993,3282.1,3281.0,0.5427]
[1734912146483,0.7993,3282.1,3281.0,3.96868617]
[1734912146627,0.7993,3282.1,3281.1,9.37686862]
[1734912146971,3.04645,3282.6,3281.3,12.5227]
[1734912147176,3.04645,3282.6,3281.5,3.04738]
[1734912147340,0.768,3282.7,3281.4,12.40598617]
[1734912147542,0.7636,3283.2,3281.9,3.42598617]
[1734912147747,3.04515,3284.0,3282.7,3.04626]
[1734912147959,0.7636,3284.2,3283.0,0.5427]
[1734912148132,3.04498,3284.1,3283.0,0.5427]
[1734912148334,0.7636,3284.2,3283.2,3.59578]
[1734912148558,0.16908,3284.5,3283.4,12.02558]
[1734912148768,0.16908,3284.5,3283.5,0.84145966]
[1734912149375,1.26161513,3283.7,3283.6,3.5427]
[1734912150646,0.16908,3284.5,3283.6,0.5427]
[1734912150891,3.0447,3284.4,3283.6,0.5427]
[1734912151188,0.02864897,3284.4,3283.4,3.0]
[1734912151489,3.04491,3284.2,3283.3,9.5227]
[1734912151856,0.02857042,3284.1,3283.3,9.5227]
[1734912152058,3.04491,3284.2,3283.3,10.76102828]
[1734912152259,0.02854424,3284.0,3283.3,10.76102828]
[1734912152489,3.04491,3284.2,3283.3,10.76102828]
[1734912152644,0.02854424,3284.0,3283.3,9.5227]
[1734912152983,3.07355042,3284.1,3283.3,8.98]
[1734912153188,0.02854424,3284.0,3283.3,8.98]
[1734912153538,3.04474,3284.4,3283.3,8.98]
[1734912153742,3.04482,3284.3,3283.3,8.98]
[1734912153974,3.07344279,3284.3,3283.4,0.898]
[1734912154977,0.02862279,3284.3,3283.4,0.898]
[1734912155498,0.02859661,3284.2,3283.5,0.5427]
[1734912155645,0.16908,3284.5,3283.5,0.5427]
[1734912155880,0.02723994,3284.1,3283.5,0.5427]
[1734912156216,0.16908,3284.5,3283.6,0.44407]
[1734912157020,0.02721312,3284.4,3283.6,0.44407]
[1734912158536,0.16908,3284.5,3283.6,0.44407]
[1734912158537,0.13539271,3284.5,3283.6,0.44407]
[1734912159118,3.04501,3284.1,3283.5,8.98]
[1734912159504,3.04509,3284.0,3283.2,0.5427]
[1734912159707,0.7868,3283.9,3283.2,0.5427]
[1734912159910,3.83197,3283.9,3283.2,0.5427]
[1734912160738,3.04544,3283.6,3282.9,0.5427]
[1734912160904,3.04526,3283.8,3282.9,0.93956862]
[1734912161124,3.04536,3283.7,3282.9,0.93956862]
[1734912162084,0.7868,3283.9,3282.7,3.42598617]
[1734912162085,3.04563,3283.4,3282.7,3.42598617]
[1734912162220,3.04563,3283.4,3282.6,1.1572723]
[1734912162426,3.04573,3283.3,3282.6,1.1572723]
[1734912162742,3.83261,3283.2,3282.6,0.6145723]
[1734912162938,1.170061,3283.2,3282.3,3.96868617]
[1734912163143,3.04622,3282.8,3282.0,0.5427]
[1734912163495,0.7868,3283.2,3282.0,0.5427]
[1734912163708,3.04638,3282.6,3282.0,0.5427]
[1734912163943,0.7868,3283.2,3281.7,0.5427]
[1734912164143,0.7868,3283.2,3282.1,3.04677]
[1734912164315,0.7868,3283.2,3281.7,0.5427]
[1734912164316,0.7868,3283.5,3282.3,3.96868617]
[1734912164512,1.26161513,3283.7,3282.5,3.0464]
[1734912164711,1.26161513,3283.7,3282.7,6.47224617]
[1734912165032,0.8088,3283.8,3282.7,6.47224617]
[1734912165744,4.30683513,3283.9,3282.7,6.47224617]
[1734912166045,4.30683513,3283.9,3282.8,0.76191345]
[1734912166046,3.04522,3283.9,3282.8,0.76191345]
[1734912168250,3.0454,3283.7,3282.6,1.14688832]
[1734912168552,3.04546,3283.6,3282.6,0.5427]
[1734912168905,0.801,3283.5,3282.6,0.5427]
[1734912171531,3.04546,3283.6,3282.6,3.5427]
[1734912172812,1.26161513,3284.0,3282.7,0.5427]
[1734912173154,3.04513,3284.0,3282.9,0.5427]
[1734912174512,3.7785,3284.2,3282.9,0.5427]
[1734912174728,3.04538,3283.7,3282.9,0.5427]
[1734912175049,0.8079,3283.5,3282.5,0.5427]
[1734912175216,3.04572,3283.3,3282.5,0.5427]
[1734912175411,3.431082,3283.3,3282.5,0.5427]
[1734912176475,0.385362,3283.3,3282.5,0.5427]
[1734912176771,3.04636,3282.7,3282.2,0.5427]
[1734912176918,3.04636,3282.7,3281.9,0.5427]
[1734912176919,3.85426,3282.7,3281.9,0.5427]
[1734912177253,0.8079,3282.7,3281.6,0.5427]
[1734912177761,3.04697,3282.0,3281.6,0.5427]
[1734912178124,3.04605,3283.0,3281.0,8.98]
[1734912178330,3.04704,3281.9,3281.3,0.5427]
[1734912178557,0.778,3282.0,3281.3,0.5427]
[1734912179408,3.82495,3282.0,3281.3,0.5427]
[1734912180013,3.04702,3281.9,3281.3,0.5427]
[1734912180817,0.778,3282.0,3280.9,0.5427]
[1734912181173,3.04749,3281.4,3280.9,0.5427]
[1734912181317,3.352289,3281.4,3280.9,0.5427]
[1734912181675,0.7988,3281.3,3280.5,0.5427]
[1734912181860,0.7988,3281.3,3280.2,0.5427]
[1734912182168,3.0478,3281.1,3280.2,0.5427]
[1734912182661,3.84638,3281.3,3280.2,0.5427]
[1734912182874,0.4103549,3281.2,3280.3,3.04847]
[1734912183020,3.04736,3281.6,3280.4,3.96868617]
[1734912183364,3.04748,3281.4,3280.4,3.96868617]
[1734912183863,1.26161513,3281.6,3280.4,3.96868617]
[1734912184062,1.26161513,3281.6,3280.4,7.01706617]
[1734912184216,1.26161513,3281.6,3280.8,3.42598617]
[1734912184422,1.26161513,3281.6,3280.9,6.04792]
[1734912184635,1.26161513,3281.6,3281.1,0.5427]
[1734912185026,3.04692,3282.0,3281.1,0.5427]
[1734912185227,0.62009578,3282.0,3281.1,0.5427]
[1734912185559,3.0473,3281.6,3281.1,0.5427]
[1734912185766,0.781,3281.9,3281.1,0.5427]
[1734912185921,3.04706,3281.9,3281.1,0.5427]
[1734912186463,0.62009578,3282.0,3281.1,0.5427]
[1734912186759,3.82775,3282.2,3281.1,1.49497]
[1734912186961,3.04666,3282.3,3281.1,10.47497]
[1734912187157,3.04686,3282.1,3281.1,10.47497]
[1734912187334,3.04712,3281.8,3281.1,0.5427]
[1734912188522,3.04729,3281.6,3281.1,0.5427]
[1734912189031,3.04729,3281.6,3280.6,3.0]
[1734912189032,0.7586,3281.6,3280.6,0.5427]
[1734912189369,3.04765,3281.3,3280.6,0.5427]
[1734912189668,0.304765,3281.2,3280.6,0.5427]
[1734912190023,3.04775,3281.1,3280.6,0.5427]
[1734912190237,0.7586,3281.6,3280.6,0.5427]
[1734912190736,3.04798,3280.9,3280.6,0.5427]
[1734912192470,1.26161513,3281.7,3279.9,0.62285425]
[1734912192471,3.04816,3280.7,3280.3,0.5427]
[1734912192769,0.304816,3280.6,3280.3,0.5427]
[1734912192969,3.04822,3280.7,3279.7,0.5427]
[1734912193171,3.04822,3280.6,3279.7,0.5427]
[1734912193519,0.8117,3281.2,3279.9,0.5427]
[1734912193720,3.04783,3281.1,3279.9,0.5427]
[1734912193920,3.04753,3281.4,3280.1,6.04867]
[1734912194183,3.04753,3281.4,3280.3,0.5427]
[1734912195040,3.0476,3281.3,3280.3,0.5427]
[1734912195245,3.04768,3281.2,3280.3,0.5427]
[1734912195778,3.0,3281.6,3280.3,0.5427]
[1734912195939,0.8117,3281.4,3280.3,0.5427]
[1734912196290,3.0485,3280.3,3279.8,0.5427]
[1734912196585,3.0485,3280.3,3279.2,3.45610381]
[1734912196586,0.8117,3280.3,3279.2,0.57281764]
[1734912196893,3.04859,3280.2,3279.2,0.57281764]
[1734912197049,3.04915,3279.7,3279.2,0.57281764]
[1734912197259,3.434709,3280.1,3279.2,0.57281764]
[1734912197571,3.04926,3279.5,3279.2,0.03011764]
[1734912197766,0.8117,3279.7,3279.2,0.03011764]
[1734912197967,3.04934,3279.4,3279.2,0.03011764]
[1734912198181,3.04943,3279.3,3279.2,0.03011764]
[1734912199772,0.304934,3279.4,3279.2,0.03011764]
[1734912199977,3.04923,3279.6,3279.2,0.03011764]
[1734912200180,3.04924,3279.5,3279.2,0.03011764]
[1734912201015,3.04936,3279.4,3279.2,0.03011764]
[1734912201505,0.8117,3279.7,3279.2,0.03011764]
[1734912201506,3.04943,3279.3,3279.2,0.03011764]
[1734912202004,3.04934,3279.4,3279.2,0.03011764]
[1734912203272,0.686083,3279.6,3279.2,0.03011764]
[1734912203660,0.8117,3279.7,3279.2,0.03011764]
[1734912203661,3.04926,3279.5,3279.2,0.03011764]
[1734912204078,0.8117,3279.7,3279.2,0.03011764]
[1734912204298,3.86076,3279.7,3279.2,0.03011764]
[1734912204609,3.04934,3279.4,3279.2,0.03011764]
[1734912204808,3.86084,3279.7,3279.2,0.03011764]
[1734912205102,3.04943,3279.4,3279.2,0.03011764]
[1734912205303,3.04943,3279.3,3279.2,0.03011764]
[1734912206063,3.04933,3279.5,3279.2,0.03011764]
[1734912206363,3.0,3279.7,3279.2,0.03011764]
[1734912206568,3.04907,3279.7,3279.2,0.03011764]
[1734912206783,3.04934,3279.4,3279.2,0.03011764]
[1734912207063,0.304907,3279.6,3279.2,0.03011764]
[1734912207268,3.04943,3279.3,3279.2,0.03011764]
[1734912209399,3.84773,3279.3,3279.2,0.03011764]
[1734912210203,6.84773,3279.3,3279.2,0.03011764]
[1734912210712,0.7864,3279.7,3279.2,0.03011764]
[1734912211809,3.04915,3279.6,3279.2,0.03011764]
[1734912212022,0.7864,3279.7,3279.2,0.03011764]
[1734912212223,3.85408,3280.0,3279.2,0.03011764]
[1734912212427,3.04878,3280.0,3279.2,0.03011764]
[1734912212834,0.3434809,3280.0,3279.2,0.03011764]
[1734912213030,3.04919,3279.6,3279.2,0.03011764]
[1734912213691,3.04897,3279.8,3279.2,0.03011764]
[1734912213889,3.04906,3279.7,3279.2,0.03011764]
[1734912214144,0.7787,3280.3,3279.2,0.03011764]
[1734912214307,3.04924,3279.5,3279.2,0.03011764]
[1734912215741,3.04934,3279.4,3279.2,0.03011764]
[1734912215910,3.04943,3279.3,3279.2,0.03011764]
[1734912217541,3.85103,3279.3,3279.2,0.03011764]
[1734912217730,4.236133,3279.3,3279.2,0.03011764]
[1734912218553,7.236133,3279.3,3279.2,0.03011764]
[1734912220714,6.434533,3279.3,3279.2,0.03011764]
[1734912221025,3.04943,3279.3,3279.2,0.03011764]
[1734912221231,3.04921,3279.6,3279.2,0.03011764]
[1734912221440,1.26161513,3279.7,3279.2,0.03011764]
[1734912221646,4.31067513,3279.7,3279.2,0.03011764]
[1734912221845,3.04906,3279.7,3279.2,0.03011764]
[1734912222647,3.48012751,3279.7,3279.2,0.03011764]
[1734912223243,3.29613026,3280.1,3279.2,0.03011764]
[1734912223244,5.03451513,3280.1,3279.2,0.03011764]
[1734912223484,3.04887,3279.9,3279.3,0.5427]
[1734912223789,5.03451513,3280.1,3279.3,0.5427]
[1734912224279,3.0491,3279.7,3279.3,0.5427]
[1734912224879,3.04917,3279.6,3279.3,0.5427]
[1734912226065,1.26161513,3279.9,3279.3,0.5427]
[1734912226452,4.31048513,3279.9,3279.3,0.5427]
[1734912227452,3.04887,3279.9,3279.3,0.5427]
[1734912227979,4.26161513,3280.2,3279.3,0.5427]
[1734912228191,3.04869,3280.1,3279.3,0.5427]
[1734912228504,1.26161513,3280.0,3279.3,0.5427]
[1734912229587,3.04905,3279.7,3279.3,0.5427]
[1734912229906,1.26161513,3280.3,3279.3,0.5427]
[1734912230063,3.04861,3280.2,3279.3,0.5427]
[1734912230263,1.26161513,3280.3,3279.3,0.5427]
[1734912230498,3.04873,3280.1,3279.3,0.5427]
[1734912230702,1.26161513,3279.9,3279.3,0.5427]
[1734912232213,3.04878,3280.0,3279.3,0.5427]
[1734912232517,0.304878,3279.9,3279.3,0.5427]
[1734912233900,3.353758,3279.9,3279.3,0.5427]
[1734912234458,4.61537313,3279.9,3279.3,0.5427]
[1734912235506,1.56649313,3279.9,3279.3,0.5427]
[1734912235658,3.04898,3279.8,3279.3,0.5427]
[1734912235857,4.31059513,3279.8,3279.3,0.5427]
[1734912236159,1.26161513,3279.8,3279.3,0.5427]
[1734912237229,4.31048513,3279.9,3279.3,0.5427]
[1734912238705,3.04897,3279.8,3279.3,0.5427]
[1734912239274,1.26161513,3279.7,3279.3,0.5427]
[1734912240419,1.26161513,3279.6,3279.3,0.5427]
[1734912240573,1.26161513,3279.6,3279.2,0.03011764]